Cogmind - Beta 13 X3 @@@ ROGUE MODE // 2024.02.18 @ 01:40:16 Player: Jezoensis Result: Destroyed by H-77 Assassin with High-powered Shotgun Performance ------------- Evolutions (6) 3000 Regions Visited (24) 4800 Robots Destroyed (259) 1295 Value Destroyed (10409) 10409 Prototype IDs (53) 1060 Alien Tech Used (0) 0 Bonus (6548) 6548 TOTAL SCORE: 27112 Bonus ------- High Alert Combat Kills 1177 Follower Combat Kills 472 Entered Garrisons 200 Network Hubs Disabled 400 Met Data Miner 300 Met Warlord at Base 500 MAIN.C Attacked Warlord 500 Warlord Defense Kills 3082 A7 Reached Mainframe 300 Met R17 at Cetus 500 Friendly Fire -883 Cogmind --------- Core Integrity 0/1150 Matter 300/300 Energy 99/100 System Corruption 0% Temperature Cool (0) Movement Core (50) Location -4/Garrison Parts ------- > --- POWER (2) -------- (None) > --- PROPULSION (5) --- (None) > --- UTILITY (8) ------ (None) > --- WEAPON (4) ------- (None) > --- INVENTORY (5) ---- EM Disruption Field Long-range Tractor Beam Dimensional Node Initializer Advanced Plasma Cannon Mass Driver Peak State ------------ > --- POWER ------------ Neutrino Core > --- PROPULSION ------- Centrium Heavy Treads Centrium Heavy Treads > --- UTILITY ---------- Experimental Coolant Injector High-capacity Storage Unit Enhanced Optical Array Improved Terrain Scanner Terrain Scan Processor Advanced Targeting Computer Focal Shield Thermal Barrier > --- WEAPON ----------- High-powered Shock Rifle Tesla Rifle Vortex Driver RU-N14's Throwing Claymores v3 > --- INVENTORY -------- Vortex Chain Reactor Sensor Array Transmission Jammer Experimental Cloaking Device EM Disruption Field Ghost Barrier Long-range Tractor Beam Dimensional Node Initializer High-powered Shock Rifle Tesla Rifle Gatling Laser Advanced Plasma Cannon Helical Railgun Mass Driver Improved Proton Missile Launcher Improved Proton Missile Launcher [Rating: 120] Favorites ----------- Power Neutrino Core Engine Improved Ion Engine Power Core Neutrino Core Reactor Quantum Reactor Propulsion Wheel Treads Centrium Heavy Treads Leg Improved Carbon-fiber Leg Wheel Wheel Utility Advanced Targeting Computer Device Improved Terrain Scanner Storage High-capacity Storage Unit Processor Advanced Targeting Computer Hackware Improved Hacking Suite Protection Improved Medium Armor Plating Weapon High-powered Shock Rifle Energy Gun High-powered Shock Rifle Energy Cannon Vortex Driver Ballistic Gun Helical Railgun Ballistic Cannon Mass Driver Launcher Long-range Missile Launcher Special Weapon RU-N14's Throwing Claymores v3 Slashing Weapon Great Axe Build | -11 -10 -10 -9 -9 -9 -8 -8 -7 -7 -7 -7 -6 -6 -6 -6 -6 -6 -5 -5 -5 -5 -4 -4 -4 ------- Run | Yrd Mat Min Mat Min Exi Min Mat Fac Low Low Dat Pro Fac Ext Cet Arc Hub Fac Upp Upp War Pro Fac Gar Slots Evolved 12 | . . . 2 . . . 2 2 . . . . 2 . . . . 2 . . . . 2 . Power 1 | . . . . . . . . . . . . . . . . . . . . . . . 1 . Propulsion 3 | . . . 1 . . . . . . . . . 1 . . . . . . . . . 1 . Utility 6 | . . . 1 . . . 2 2 . . . . . . . . . 1 . . . . . . Weapon 2 | . . . . . . . . . . . . . 1 . . . . 1 . . . . . . Parts Attached 507 | 6 7 10 24 14 . 4 35 65 20 2 2 4 17 47 20 12 33 91 16 4 35 27 12 . Power 19 | 1 . . 2 . . . 5 3 1 . . . 1 . 1 . 1 2 . . . . 2 . Engine 13 | 1 . . 2 . . . 5 3 1 . . . . . 1 . . . . . . . . . Core 3 | . . . . . . . . . . . . . 1 . . . . 2 . . . . . . Reactor 3 | . . . . . . . . . . . . . . . . . 1 . . . . . 2 . Propulsion 50 | 2 2 4 3 1 . 1 4 6 3 . . . 5 3 1 . 2 3 1 . 4 . 5 . Treads 15 | . 1 2 1 . . 1 2 . . . . . 1 1 1 . 2 1 . . 2 . . . Leg 8 | . . . . . . . . 2 2 . . . 2 . . . . . . . . . 2 . Wheel 27 | 2 1 2 2 1 . . 2 4 1 . . . 2 2 . . . 2 1 . 2 . 3 . Hover . | . . . . . . . . . . . . . . . . . . . . . . . . . Flight . | . . . . . . . . . . . . . . . . . . . . . . . . . Utility 283 | 2 3 4 10 8 . 1 18 33 8 1 1 1 9 39 10 10 25 53 11 4 15 13 4 . Device 218 | 1 2 3 8 8 . . 13 21 5 1 . 1 5 30 5 9 18 45 9 4 14 13 3 . Storage 7 | 1 1 1 1 . . 1 2 . . . . . . . . . . . . . . . . . Processor 17 | . . . 1 . . . 1 5 . . . . 2 . . . 1 5 1 . 1 . . . Hackware 7 | . . . . . . . . 1 . . . . 2 . . 1 2 . . . . . 1 . Protection 34 | . . . . . . . 2 6 3 . 1 . . 9 5 . 4 3 1 . . . . . Artifact . | . . . . . . . . . . . . . . . . . . . . . . . . . Weapon 155 | 1 2 2 9 5 . 2 8 23 8 1 1 3 2 5 8 2 5 33 4 . 16 14 1 . Energy Gun 69 | . 2 1 7 2 . . 6 10 5 . 1 1 1 4 5 1 2 12 1 . . 8 . . Energy Cannon 19 | . . . . . . . . 4 2 . . . 1 . . . . 3 1 . 7 1 . . Ballistic Gun 10 | 1 . . . . . 1 . . . . . . . . 1 . 2 2 . . 1 2 . . Ballistic Cannon 4 | . . . . . . . . 1 . . . . . . . . . 1 . . 1 1 . . Launcher 19 | . . . . 2 . . 1 . . . . . . 1 2 . . 7 1 . 4 1 . . Special Weapon 5 | . . 1 . . . . . . . . . . . . . . . . . . 3 1 . . Impact Weapon . | . . . . . . . . . . . . . . . . . . . . . . . . . Slashing Weapon 29 | . . . 2 1 . 1 1 8 1 1 . 2 . . . 1 1 8 1 . . . 1 . Piercing Weapon . | . . . . . . . . . . . . . . . . . . . . . . . . . Special Melee Weapon . | . . . . . . . . . . . . . . . . . . . . . . . . . Unidentified Prototypes 21 | . . 1 2 . . . 1 3 . . . . 1 . 4 . . . . . 7 . 2 . Corrupted Parts 6 | . . . . . . . . . . . . . . . 3 . 3 . . . . . . . System Corruption 50 | . . . . . . . . . . . . . . . 31 . 19 . . . . . . . Parts Lost 54 | . . . . 1 . . 2 4 2 . . . . 1 1 . 5 14 1 . 4 5 14 . Power 7 | . . . . . . . 1 1 1 . . . . . . . . 2 . . . 1 1 . Propulsion 13 | . . . . . . . 1 1 1 . . . . 1 1 . 1 1 . . . 1 5 . Utility 18 | . . . . . . . . 1 . . . . . . . . 3 6 . . 3 . 5 . Weapon 16 | . . . . 1 . . . 1 . . . . . . . . 1 5 1 . 1 3 3 . Highest Loss Streak 14 | . . . . 1 . . 1 2 2 . . . . 1 1 . 3 3 1 . 2 3 14 . To Critical Strikes 1 | . . . . . . . . . . . . . . . 1 . . . . . . . . . Average Slot Usage (%) 92 | . 89 100 99 100 100 100 99 99 99 100 100 100 100 97 85 84 85 86 93 94 89 84 71 7 Engine 4 | . 14 14 11 11 11 11 9 6 6 7 7 7 1 . 4 6 5 . . . . . . . Core 2 | . . . . . . . . . . . . . 4 6 1 . . 2 5 5 5 4 . . Treads 6 | . 1 1 11 11 11 11 9 1 . . . . 3 7 6 6 6 10 5 5 7 10 4 . Leg 3 | . . . . . . . . 3 11 15 15 15 10 4 . . . . . . . . 3 . Wheel 9 | . 26 26 22 22 22 22 17 17 10 7 7 7 11 10 6 6 5 . 11 11 5 . 6 . Device 12 | . 14 14 15 11 11 11 13 11 12 14 15 14 9 10 4 13 9 10 11 11 11 21 12 . Storage 6 | . 14 14 11 11 11 11 9 7 7 7 7 7 6 6 6 6 6 5 5 5 5 5 4 . Processor 21 | . . . 6 11 11 11 13 30 30 30 30 30 26 26 26 23 17 22 23 23 21 17 14 7 Protection 2 | . . . . . . . 8 1 1 . . . . 1 7 . 2 4 5 5 4 . . . Energy Gun 13 | . 8 27 20 13 11 8 16 6 10 13 7 10 13 19 12 14 16 13 16 17 9 14 4 . Energy Cannon 1 | . . . . . . . . 2 2 . . . . . . . . 1 3 5 7 1 . . Slashing Weapon 2 | . . . . 6 . 6 1 4 1 1 7 3 6 . . 5 2 2 1 . . . 4 . Naked Turns 16 | . . . . . . . . . . . . . . . . . . . . . . . . 16 Heaviest Build 113 | 12 20 51 56 36 36 56 64 68 67 59 59 59 63 74 82 73 89 95 87 87 113 88 91 . Greatest Support 160 | 20 20 20 22 22 22 22 22 38 22 10 10 10 26 30 80 80 160 160 80 26 160 160 80 3 Greatest Overweight (x) 6 | . 1 2 2 1 1 2 2 4 6 5 5 5 6 3 2 2 2 4 4 3 4 . 5 . Average Overweight (x) 1 | . . . 1 1 1 1 1 1 3 5 5 5 3 2 1 . 1 . 2 3 2 . 2 . Largest Inventory Capacity 20 | 8 10 20 20 15 15 20 20 20 20 20 20 20 20 20 20 20 20 20 20 20 20 20 20 5 Average Capacity 19 | 7 9 13 19 15 15 19 19 20 20 20 20 20 20 20 20 20 20 20 20 20 20 20 19 5 Most Carried 20 | 5 8 14 20 15 15 17 20 20 20 20 20 20 20 20 20 20 20 20 20 20 20 19 18 5 Average Carried 17 | 3 6 10 17 14 14 16 17 19 19 19 20 19 19 19 19 19 18 15 19 19 19 16 14 5 Final Capacity 20 | 8 10 20 15 15 15 20 20 20 20 20 20 20 20 20 20 20 20 20 20 20 20 20 5 5 Final Carried 20 | 5 8 14 15 14 15 17 20 19 20 20 20 20 20 19 20 20 15 19 20 20 18 18 5 5 Class Distribution -------------------- 24% | Scavenger-Skirmisher 16% | Mutant 15% | Assassin 11% | Skirmisher 7% | Scavenger-Assassin 7% | Scavenger-Gunner 5% | Scavenger-Mutant 3% | Derelict-Skirmisher Dominant Class ---------------- Mutant | -10/Materials Mutant | -10/Mines Mutant | -9/Materials Mutant | -9/Mines Mutant | -9/Exiles Mutant | -8/Mines Derelict-Mutant | -8/Materials Assassin | -7/Factory Skirmisher | -7/Lower Caves Skirmisher | -7/Lower Caves Assassin | -7/Data Miner Assassin | -6/Proximity Caves Assassin | -6/Factory Derelict-Skirmisher | -6/Extension Scavenger-Skirmisher | -6/Cetus Scavenger-Mutant | -6/Archives Scavenger-Skirmisher | -6/Hub_04(d) Scavenger-Assassin | -5/Factory Scavenger-Skirmisher | -5/Upper Caves Scavenger-Skirmisher | -5/Upper Caves Scavenger-Skirmisher | -5/Warlord Scavenger-Skirmisher | -4/Proximity Caves Scavenger-Mutant | -4/Factory Mutant | -4/Garrison Resources | -11 -10 -10 -9 -9 -9 -8 -8 -7 -7 -7 -7 -6 -6 -6 -6 -6 -6 -5 -5 -5 -5 -4 -4 -4 ----------- Run | Yrd Mat Min Mat Min Exi Min Mat Fac Low Low Dat Pro Fac Ext Cet Arc Hub Fac Upp Upp War Pro Fac Gar Matter Collected 6176 | 213 107 117 200 62 196 40 378 586 304 40 . 60 100 511 221 274 297 1160 325 40 400 357 188 . Remotely 1317 | . . . . . . . . 145 21 . . . . 45 . . 213 242 221 . 320 110 . . Salvage Created 11367 | 10 107 149 538 29 . 28 731 759 266 23 . 123 222 1159 753 610 598 3234 204 30 767 850 177 . Parts 528 | 3 1 9 38 10 . 2 21 40 6 . . 2 16 48 42 32 25 140 17 2 20 42 12 . Haulers Intercepted 3 | . . . 2 . . . . . . . . . . . . . 1 . . . . . . . Recyclers Shooed 16 | 1 . . . . . . 1 1 . . . . . 2 . . . 10 . . . . 1 . Parts Field Recycled . | . . . . . . . . . . . . . . . . . . . . . . . . . Retrieved Matter . | . . . . . . . . . . . . . . . . . . . . . . . . . Parts Self-Destructed 51 | . . . . . . . . . . . . 2 . . . . . . 15 5 . 29 . . Prevented 18 | . . . . . . . . . 3 . . 1 . . . . . . . 1 . 13 . . Kills | -11 -10 -10 -9 -9 -9 -8 -8 -7 -7 -7 -7 -6 -6 -6 -6 -6 -6 -5 -5 -5 -5 -4 -4 -4 ------- Run | Yrd Mat Min Mat Min Exi Min Mat Fac Low Low Dat Pro Fac Ext Cet Arc Hub Fac Upp Upp War Pro Fac Gar Combat Hostiles Destroyed 190 | . 2 5 9 4 . . 12 9 3 . . . . 17 13 4 7 51 9 1 25 19 . . Guns 74 | . 1 3 8 2 . . 4 6 . . . . . 15 . 2 6 13 5 1 . 8 . . Cannons 27 | . . . . . . . . 2 1 . . . . . . . . 5 . . 11 8 . . AOE 62 | . 1 1 . 2 . . 6 . 1 . . . . . 9 . . 24 4 . 14 . . . Classes Destroyed 24 | 1 1 1 5 1 . . 3 . 1 . . 1 . 1 . 1 1 3 . . 3 1 . . Worker 11 | . . . . . . . 1 4 . . . . 1 1 . . 1 2 . . . . 1 . Builder 25 | . . . 1 . . 1 . 7 . . . . 3 1 . . 2 10 . . . . . . Tunneler 6 | 1 . . 1 . . . . . . . . . . . . . . 2 . . . . 2 . Hauler 3 | . . . 2 . . . . . . . . . . . . . 1 . . . . . . . Recycler 12 | . . . . . . . 2 3 . . . . 1 . . . . 5 . . . . 1 . Minesweeper 1 | . . . . . . . . . . . . 1 . . . . . . . . . . . . Operator 10 | . . . . . . . . . . . . . . . . 9 . 1 . . . . . . Watcher 7 | . . . 1 . . . 1 . . . . . . 1 2 . . 2 . . . . . . Swarmer 39 | . . 3 3 3 . . . 4 . . . . . . 3 . . 1 9 1 3 9 . . Grunt 77 | . 2 2 2 . . . 9 3 . . . . . 7 2 . . 35 . . 10 5 . . Brawler 6 | . . . 1 . . . . . 1 . . . . 1 . . . 1 . . 2 . . . Duelist 5 | . . . . . . . . . 1 . . . . . 1 . . . . . 1 2 . . Protector 3 | . . . . . . . . . . . . . . . . . 1 1 . . 1 . . . Sentry 29 | . . . 3 . . . 2 2 1 . . . . 7 . 4 4 4 . . . 2 . . Demolisher 1 | . . . . 1 . . . . . . . . . . . . . . . . . . . . Specialist 5 | . . . . . . . . . . . . . . . . . . 2 . . 3 . . . Hunter 7 | . . . . . . . 1 . . . . . . . . . 2 2 . . 2 . . . Programmer 5 | . . . . . . . . . . . . . . . . . . 4 . . . 1 . . Heavy 1 | . . . . . . . . . . . . . . . . . . 1 . . . . . . Behemoth 3 | . . . . . . . . . . . . . . 2 . . . . . . 1 . . . Cetus Guard 7 | . . . . . . . . . . . . . . . 7 . . . . . . . . . Striker 1 | . . . . . . . . . . . . . . . . . . . . . 1 . . . Executioner 1 | . . . . . . . . . . . . . . . . . . . . . 1 . . . Decomposer 3 | . . . . . . . . . 2 1 . . . . . . . . . . . . . . Packrat 1 | . . . . . . . . . . . . 1 . . . . . . . . . . . . Thug 1 | . . . . . . . . . . . . . . . . . . . . . 1 . . . Bouncer 1 | . . . . . . . . . . . . . . . . . . . . . 1 . . . Fireman 1 | . . . . . . . . . . . . . . . . . . . . . . 1 . . Mutant 1 | . . . . . . . . . . . . . . . . . . . . . 1 . . . Best Kill Streak 17 | 1 2 3 3 3 . 1 8 8 2 . . 1 4 4 6 4 4 17 11 1 12 9 2 . Combat Bots Only 15 | . 2 3 3 3 . . 6 3 2 . . . . 2 6 4 3 15 10 1 12 9 . . Max Kills in Single Turn 6 | 1 1 2 1 2 . 1 2 2 1 1 . 1 1 1 3 1 2 4 4 1 6 3 1 . Gunslinging 1 | . . . . . . . . 1 . . . . . . . . . 1 1 . . 1 . . Exploded 5 | . 1 1 . 2 . . 1 . 1 . . . . . 3 . . 3 4 . 5 . . . Melee . | . . . . . . . . . . . . . . . . . . . . . . . . . Uniques/NPCs Destroyed . | . . . . . . . . . . . . . . . . . . . . . . . . . Combat | -11 -10 -10 -9 -9 -9 -8 -8 -7 -7 -7 -7 -6 -6 -6 -6 -6 -6 -5 -5 -5 -5 -4 -4 -4 -------- Run | Yrd Mat Min Mat Min Exi Min Mat Fac Low Low Dat Pro Fac Ext Cet Arc Hub Fac Upp Upp War Pro Fac Gar Hostile Shots Fired 1204 | . 6 12 55 7 . . 48 117 81 6 . . . 112 13 18 175 267 10 5 89 93 51 39 Missed 349 | . 2 1 21 3 . . 15 38 36 4 . . . 40 2 6 47 54 1 1 25 22 18 13 Damage Taken 13764 | . 63 108 362 107 . . 509 1029 318 52 . . . 702 209 282 1320 3941 176 54 1260 1349 1339 584 Core 2370 | . . 61 61 . . . 81 123 32 52 . . . 128 . . 148 263 . . 168 92 577 584 Absorbed by Shields 587 | . . . . . . . 36 . . . . . . 227 96 . 228 . . . . . . . Reduced by Siege Mode 460 | . . . . . . . . . . . . . . . . . 28 213 7 . 35 177 . . Ignored by Resistances 825 | . . . . . . . . . . . . . . . . . 173 369 11 4 173 95 . . Regen/Repaired (Parts) 1250 | . . . . . . . . 11 . . . . . . . . . . . . 1239 . . . Core Remaining (%) 75 | 100 . 75 . . . 84 85 . . . . 70 . . . . 67 . . . . 47 . . Volleys Fired 407 | 6 5 11 34 4 . . 30 44 11 . . 3 . 52 17 7 13 98 6 5 24 36 1 . Largest 4 | 1 2 2 2 2 . . 2 2 2 . . 2 . 3 1 3 3 4 3 4 3 4 1 . Hottest 400 | 20 80 100 112 95 . . 117 138 150 . . 90 . 231 240 180 195 400 185 283 257 228 80 . Shots Fired 807 | 6 9 20 63 6 . . 54 79 22 . . 6 . 145 17 21 35 198 14 10 44 57 1 . Gun 622 | 6 9 18 63 5 . . 48 56 10 . . 6 . 145 4 21 35 139 12 4 1 39 1 . Cannon 129 | . . . . . . . . 23 12 . . . . . . . . 38 1 6 37 12 . . Launcher 48 | . . . . 1 . . 6 . . . . . . . 13 . . 21 1 . 2 4 . . Special 8 | . . 2 . . . . . . . . . . . . . . . . . . 4 2 . . Kinetic 76 | 6 1 . . . . . 1 10 . . . . . . . . 4 18 . . 6 30 . . Thermal 456 | . . 2 27 . . . 47 58 10 . . 6 . 145 4 21 31 91 1 6 . 6 1 . Explosive 39 | . . . . 1 . . 6 . . . . . . . 4 . . 21 1 . 4 2 . . Electromagnetic 200 | . 8 18 36 5 . . . 11 12 . . . . . 9 . . 68 12 4 3 14 . . Entropic 36 | . . . . . . . . . . . . . . . . . . . . . 31 5 . . Robot Hit Streak 51 | 3 5 8 9 3 . . 18 17 9 . . 3 . 23 2 12 24 51 8 2 14 12 7 . Robot Miss Streak 5 | 1 1 5 3 1 . . 3 4 2 . . 1 . 2 1 2 1 3 2 2 3 4 . . Penetration Max 1 | . . . . . . . . . . . . . . . . . . 1 . . 1 1 . . Secondary Targets 11 | . . 1 . . . . 1 1 . . . . . 2 . . . 2 3 . . 1 . . Max Gunslinging Chain 1 | . . 1 . . . . 1 1 . . . . . 1 . . . 1 1 . . 1 . . Shots Hit Robots 639 | 5 7 12 44 4 . 2 41 63 19 1 . 8 6 106 6 37 27 166 7 2 30 41 5 . Core Hits 465 | 1 3 5 18 5 . 1 28 24 4 . . 1 3 50 28 30 23 156 9 1 41 30 4 . Critical Kills 1 | . . . . . . . . . . . . . . . . . 1 . . . . . . . Critical Parts Destroyed 2 | . . . . . . . . . . . . . . . . . . 2 . . . . . . Critical Strikes 43 | . . 1 3 . . . 4 . . . . 1 . 8 . 1 1 8 . . 12 4 . . Burn 18 | . . . 3 . . . 4 . . . . 1 . 8 . 1 . 1 . . . . . . Destroy 3 | . . . . . . . . . . . . . . . . . 1 2 . . . . . . Corrupt 6 | . . 1 . . . . . . . . . . . . . . . 5 . . . . . . Sunder 16 | . . . . . . . . . . . . . . . . . . . . . 12 4 . . Melee Attacks 137 | . . . 3 5 . 2 1 46 2 1 . 5 16 . . 20 5 21 3 . . . 7 . Impact . | . . . . . . . . . . . . . . . . . . . . . . . . . Slashing 137 | . . . 3 5 . 2 1 46 2 1 . 5 16 . . 20 5 21 3 . . . 7 . Piercing . | . . . . . . . . . . . . . . . . . . . . . . . . . Sneak Attacks 50 | . . . . 1 . 2 . 11 2 1 . . 6 . . 13 3 7 . . . . 4 . Combat Hostiles 1 | . . . . . . . . . . . . . . . . . 1 . . . . . . . Follow-up Attacks . | . . . . . . . . . . . . . . . . . . . . . . . . . Damage Inflicted 32928 | 35 124 233 801 217 . 150 1454 2292 560 90 . 249 513 2542 1663 1950 1166 9560 426 41 6095 2393 374 . Guns 10549 | 35 102 190 801 52 . . 681 587 165 . . 86 . 2542 . 511 509 3286 183 41 . 755 23 . Cannons 5227 | . . . . . . . . 521 222 . . . . . . . . 1037 . . 2656 791 . . Explosions 11898 | . 22 43 . 99 . . 773 51 49 . . . . . 1663 . 376 4520 243 . 3253 806 . . Melee 4947 | . . . . 66 . 150 . 1133 124 90 . 163 513 . . 1439 281 637 . . . . 351 . Ramming 80 | . . . . . . . . . . . . . . . . . . 80 . . . . . . Kinetic 1613 | 35 6 . . . . . . 183 . . . . . . . . 47 523 . . 119 700 . . Thermal 9085 | . 22 43 355 . . . 930 698 214 . . 86 . 2542 536 511 462 2448 . . 150 65 23 . Explosive 8945 | . . . . 99 . . 524 . . . . . . . 590 . . 4274 243 . 2919 296 . . Electromagnetic 4846 | . 96 190 446 52 . . . 278 222 . . . . . 537 . 376 1598 183 41 184 643 . . Impact . | . . . . . . . . . . . . . . . . . . . . . . . . . Slashing 5174 | . . . . 66 . 150 . 1133 124 90 . 163 513 . . 1439 281 637 . . 186 41 351 . Piercing . | . . . . . . . . . . . . . . . . . . . . . . . . . Entropic 3185 | . . . . . . . . . . . . . . . . . . . . . 2537 648 . . Highest Corruption 37 | . . . . . . . . . . . . . 5 . 29 29 37 8 8 8 8 . . . Average Corruption 10 | . . . . . . . . . . . . . 2 . 26 21 13 4 8 8 8 . . . Corruption Purged 33 | . . . . . . . . . . . . . 8 . 2 23 . . . . . . . . Corruption Blocked . | . . . . . . . . . . . . . . . . . . . . . . . . . Effects 112 | . . . . . . . . . . . . . 1 . 11 24 20 26 18 11 1 . . . Message Errors 23 | . . . . . . . . . . . . . . . 3 3 4 8 2 3 . . . . Matter Fused 19 | . . . . . . . . . . . . . . . 1 6 3 5 3 1 . . . . Heat Flow Errors 16 | . . . . . . . . . . . . . . . 3 5 3 3 1 1 . . . . Energy Discharges 18 | . . . . . . . . . . . . . . . 3 3 4 3 3 2 . . . . Parts Fused 2 | . . . . . . . . . . . . . . . . . . . 2 . . . . . Data Loss (minor) 10 | . . . . . . . . . . . . . 1 . . 2 4 1 2 . . . . . Data Loss (major) 8 | . . . . . . . . . . . . . . . . 2 . 2 2 2 . . . . Misfires 11 | . . . . . . . . . . . . . . . . 2 1 3 2 2 1 . . . Alerts 2 | . . . . . . . . . . . . . . . 1 . . . 1 . . . . . Misdirections 1 | . . . . . . . . . . . . . . . . 1 . . . . . . . . Weapon Failures 2 | . . . . . . . . . . . . . . . . . 1 1 . . . . . . Overload Shots 11 | . . . . . . . . . . . . . . . 4 . . 7 . . . . . . Overflow Damage 2138 | . . . . 36 . 42 140 391 59 83 . 44 145 . 28 447 55 361 . . 170 30 107 . Projectiles 97 | . . . . . . . . 28 . . . . . . . . . 6 . . 33 30 . . Explosions 407 | . . . . . . . 140 . . . . . . . 28 . 7 95 . . 137 . . . Melee 1634 | . . . . 36 . 42 . 363 59 83 . 44 145 . . 447 48 260 . . . . 107 . Knockbacks 4 | . . . . . . . . . . . . . . . . . . 2 . . 1 1 . . Impact 1 | . . . . . . . . . . . . . . . . . . 1 . . . . . . Kinetic 3 | . . . . . . . . . . . . . . . . . . 1 . . 1 1 . . Secondary . | . . . . . . . . . . . . . . . . . . . . . . . . . Self-Inflicted Damage 410 | . . . . 15 . . . 33 . . . . . . . . 74 263 25 . . . . . Shots 11 | . . . . 1 . . . 1 . . . . . . . . 1 7 1 . . . . . Rammed 8 | . . . . . . . . . . . . . . . . . . 8 . . . . . . Targets Rammed 8 | . . . . . . . . . . . . . . . . . . 8 . . . . . . Kicked . | . . . . . . . . . . . . . . . . . . . . . . . . . Crushed . | . . . . . . . . . . . . . . . . . . . . . . . . . Highest Temperature 541 | . 105 177 243 27 . . 312 228 165 . . 12 . 388 436 227 205 541 139 227 293 174 14 . Average Temperature 94 | . 57 62 54 14 . . 98 51 64 . . 6 . 141 166 67 80 115 42 77 117 44 14 . Received Heat Transfer 2978 | . 33 33 96 . . . 285 207 78 12 . . . 244 . 54 129 1399 . . 147 138 123 . Effects 8 | . . . . . . . . . . . . . . . 1 . . 7 . . . . . . Shutdowns 3 | . . . . . . . . . . . . . . . . . . 3 . . . . . . Energy Bleed 1 | . . . . . . . . . . . . . . . 1 . . . . . . . . . Short Circuit 1 | . . . . . . . . . . . . . . . . . . 1 . . . . . . Damage (minor) 1 | . . . . . . . . . . . . . . . . . . 1 . . . . . . Damage (major) 2 | . . . . . . . . . . . . . . . . . . 2 . . . . . . Siege Activations 29 | . . . . . . . . . . . . . . . 1 3 2 15 1 1 2 4 . . Total Turns 411 | . . . . . . . . . . . . . . . 3 9 28 207 13 1 68 82 . . Longest Duration 64 | . . . . . . . . . . . . . . . 3 3 24 36 13 1 64 33 . . Robots Corrupted 19 | . . 1 1 . . . . 1 1 . . . . . 4 . 1 7 . . . 3 . . Combat Hostiles 18 | . . 1 . . . . . 1 1 . . . . . 4 . 1 7 . . . 3 . . Parts Fried 33 | . . 1 1 . . . . 1 1 . . . . . 2 . 9 11 2 . . 5 . . Impact Corruptions 1 | . . . . . . . . . . . . . . . . . . 1 . . . . . . Robots Melted 9 | . . . 1 . . . 2 . . . . . . 2 . 2 . 2 . . . . . . Combat Hostiles 9 | . . . 1 . . . 2 . . . . . . 2 . 2 . 2 . . . . . . Parts Melted 40 | . . . 7 . . . 5 7 . . . . . 12 . 6 1 2 . . . . . . Heat Transferred 16434 | . 50 100 962 . . . 1939 1234 346 . . 222 . 4847 250 1209 1011 3889 . . 200 125 50 . Parts Sabotaged . | . . . . . . . . . . . . . . . . . . . . . . . . . Parts Stolen . | . . . . . . . . . . . . . . . . . . . . . . . . . Parts Stripped . | . . . . . . . . . . . . . . . . . . . . . . . . . Power Chain Reactions 12 | . 1 1 . . . . . 1 1 . . . . . 3 . . 3 . . 2 . . . Alert | -11 -10 -10 -9 -9 -9 -8 -8 -7 -7 -7 -7 -6 -6 -6 -6 -6 -6 -5 -5 -5 -5 -4 -4 -4 ------- Run | Yrd Mat Min Mat Min Exi Min Mat Fac Low Low Dat Pro Fac Ext Cet Arc Hub Fac Upp Upp War Pro Fac Gar Peak Influence 1414 | 5 181 221 386 199 . 5 369 248 . . . . 86 207 488 370 178 1414 . . . . 85 32 Initial 195 | . 3 70 85 117 . . 1 68 . . . . . 1 47 195 63 86 . . . . 59 2 Average 259 | 1 62 170 255 195 . 2 143 104 . . . . 45 93 294 295 90 761 . . . . 66 4 Maximum Alert Level 4 | . . 1 1 . . . 1 1 . . . . . 1 2 1 . 4 . . . . . . Low Security (%) 65 | 100 100 81 25 100 . 100 64 86 . . . . 100 99 41 27 100 9 . . . . 100 100 Level 1 16 | . . 18 74 . . . 35 13 . . . . . . 34 72 . 3 . . . . . . Level 2 8 | . . . . . . . . . . . . . . . 23 . . 37 . . . . . . Level 3 3 | . . . . . . . . . . . . . . . . . . 17 . . . . . . Level 4 6 | . . . . . . . . . . . . . . . . . . 32 . . . . . . Level 5 . | . . . . . . . . . . . . . . . . . . . . . . . . . High Security . | . . . . . . . . . . . . . . . . . . . . . . . . . Max Security . | . . . . . . . . . . . . . . . . . . . . . . . . . Squads Dispatched 30 | . 2 1 3 . . . 2 4 . . . . . 2 . . 1 14 . . . 1 . . Investigation 9 | . 1 1 1 . . . 1 1 . . . . . 2 . . 1 1 . . . . . . Extermination 3 | . . . . . . . . 1 . . . . . . . . . 2 . . . . . . Reinforcement 12 | . 1 . 2 . . . 1 2 . . . . . . . . . 6 . . . . . . Assault 3 | . . . . . . . . . . . . . . . . . . 2 . . . 1 . . Garrison 3 | . . . . . . . . . . . . . . . . . . 3 . . . . . . Intercept . | . . . . . . . . . . . . . . . . . . . . . . . . . Searches Triggered . | . . . . . . . . . . . . . . . . . . . . . . . . . Construction Impeded 4 | . . . . . . . . . . . . . . . . . . 4 . . . . . . Haulers Reinforced . | . . . . . . . . . . . . . . . . . . . . . . . . . Active Scanning Responses . | . . . . . . . . . . . . . . . . . . . . . . . . . Cargo Convoy Interrupts . | . . . . . . . . . . . . . . . . . . . . . . . . . Stealth | -11 -10 -10 -9 -9 -9 -8 -8 -7 -7 -7 -7 -6 -6 -6 -6 -6 -6 -5 -5 -5 -5 -4 -4 -4 --------- Run | Yrd Mat Min Mat Min Exi Min Mat Fac Low Low Dat Pro Fac Ext Cet Arc Hub Fac Upp Upp War Pro Fac Gar Distress Signals 13 | . . . 3 . . . . . . . . . . 3 2 . . 5 . . . . . . Communications Jammed . | . . . . . . . . . . . . . . . . . . . . . . . . . Distress Signals . | . . . . . . . . . . . . . . . . . . . . . . . . . Times Spotted 326 | . 7 5 23 4 . . 14 17 4 1 . . 1 29 13 18 11 71 9 4 49 27 9 10 Peak Tracking Total 19 | . 3 3 10 3 . . 3 5 3 1 . . . 3 5 1 5 8 4 5 19 6 9 10 Tactical Retreats 14 | . 1 . . . . . . 3 1 . . . . 1 . . . 2 . . 2 3 . 1 Traps | -11 -10 -10 -9 -9 -9 -8 -8 -7 -7 -7 -7 -6 -6 -6 -6 -6 -6 -5 -5 -5 -5 -4 -4 -4 ------- Run | Yrd Mat Min Mat Min Exi Min Mat Fac Low Low Dat Pro Fac Ext Cet Arc Hub Fac Upp Upp War Pro Fac Gar Traps Triggered 17 | . . . . . . . . 2 . . . . 5 3 . . 2 2 . . 1 . 1 1 Indirectly . | . . . . . . . . . . . . . . . . . . . . . . . . . Trap Hack Attempts . | . . . . . . . . . . . . . . . . . . . . . . . . . Triggered . | . . . . . . . . . . . . . . . . . . . . . . . . . Disarmed . | . . . . . . . . . . . . . . . . . . . . . . . . . Reprogrammed . | . . . . . . . . . . . . . . . . . . . . . . . . . Reused 1 | . . . . . . . . . . . . . . . . . . . . . 1 . . . Traps Extracted . | . . . . . . . . . . . . . . . . . . . . . . . . . Installed 1 | . . . . . . . . . . . . . . . . . . . . . 1 . . . Triggered 13 | . . . . . . . . 1 . . . 3 . . . . . . . . 9 . . . Most Traps Carried 1 | . . . . . . . . . . . . 1 1 1 . . . . 1 1 1 . . . Machines | -11 -10 -10 -9 -9 -9 -8 -8 -7 -7 -7 -7 -6 -6 -6 -6 -6 -6 -5 -5 -5 -5 -4 -4 -4 ---------- Run | Yrd Mat Min Mat Min Exi Min Mat Fac Low Low Dat Pro Fac Ext Cet Arc Hub Fac Upp Upp War Pro Fac Gar Machines Disabled 28 | . . 3 . . . . 6 2 . . . . . . 6 . 2 6 . 1 1 1 . . Max in Single Turn 5 | . . 2 . . . . 3 2 . . . . . . 5 . 2 2 . 1 1 1 . . Garrison Access 2 | . . . . . . . 1 1 . . . . . . . . . . . . . . . . Network Hub 2 | . . . . . . . . . . . . . . . . . 2 . . . . . . . Machines Repaired . | . . . . . . . . . . . . . . . . . . . . . . . . . Machines Dismantled . | . . . . . . . . . . . . . . . . . . . . . . . . . Machines Sabotaged . | . . . . . . . . . . . . . . . . . . . . . . . . . Overloaded Fab Kills . | . . . . . . . . . . . . . . . . . . . . . . . . . Hacking | -11 -10 -10 -9 -9 -9 -8 -8 -7 -7 -7 -7 -6 -6 -6 -6 -6 -6 -5 -5 -5 -5 -4 -4 -4 --------- Run | Yrd Mat Min Mat Min Exi Min Mat Fac Low Low Dat Pro Fac Ext Cet Arc Hub Fac Upp Upp War Pro Fac Gar Machines Accessed 49 | . 6 . 9 . . . 5 4 1 . 3 . 4 6 . . 5 2 . . 3 . 1 . Terminals 30 | . 5 . 8 . . . 3 1 . . . . 2 6 . . 5 . . . . . . . Fabricators 4 | . . . . . . . . 1 . . . . 2 . . . . 1 . . . . . . Repair Stations 1 | . . . . . . . . 1 . . . . . . . . . . . . . . . . Recycling Units 3 | . 1 . 1 . . . 1 . . . . . . . . . . . . . . . . . Scanalyzers . | . . . . . . . . . . . . . . . . . . . . . . . . . Garrison Access 4 | . . . . . . . 1 1 . . . . . . . . . 1 . . . . 1 . Total Hacks 174 | . 20 . 27 . . . 20 8 1 . 24 . 14 25 . . 12 8 . . 12 . 3 . Successful 104 | . 16 . 9 . . . 9 4 1 . 24 . 10 11 . . 5 2 . . 12 . 1 . Failed 67 | . 4 . 17 . . . 10 4 . . . . 4 13 . . 7 6 . . . . 2 . Catastrophic 9 | . . . 3 . . . . 1 . . . . 1 2 . . 1 1 . . . . . . Database Lockouts 3 | . . . 1 . . . 1 . . . . . . 1 . . . . . . . . . . Manual 99 | . 17 . 19 . . . 18 3 . . . . 9 19 . . 5 8 . . 1 . . . Terminals 106 | . 19 . 26 . . . 17 3 . . . . 4 25 . . 12 . . . . . . . Fabricators 14 | . . . . . . . . 1 . . . . 10 . . . . 3 . . . . . . Repair Stations 2 | . . . . . . . . 2 . . . . . . . . . . . . . . . . Recycling Units 3 | . 1 . 1 . . . 1 . . . . . . . . . . . . . . . . . Scanalyzers . | . . . . . . . . . . . . . . . . . . . . . . . . . Garrison Access 12 | . . . . . . . 2 2 . . . . . . . . . 5 . . . . 3 . Terminal Hacks 66 | . 10 . 4 . . . 3 1 1 . 24 . 2 8 . . 1 . . . 12 . . . Record 6 | . . . . . . . . . . . 6 . . . . . . . . . . . . . Part Schematic 13 | . 1 . . . . . . . . . 11 . 1 . . . . . . . . . . . Robot Schematic 4 | . . . . . . . . . . . 4 . . . . . . . . . . . . . Robot Analysis 8 | . 5 . 1 . . . 1 . . . . . . 1 . . . . . . . . . . Prototype ID Bank 17 | . 1 . 1 . . . . . . . 3 . . 1 . . . . . . 11 . . . Open Door 3 | . . . . . . . . . 1 . . . 1 . . . . . . . 1 . . . Branch Access Points 2 | . . . 1 . . . . 1 . . . . . . . . . . . . . . . . Terminal Index 3 | . 1 . . . . . 1 . . . . . . 1 . . . . . . . . . . Alert Level 1 | . . . . . . . . . . . . . . 1 . . . . . . . . . . Unreport Threat 4 | . . . . . . . 1 . . . . . . 2 . . 1 . . . . . . . Locate Traps 4 | . 1 . 1 . . . . . . . . . . 2 . . . . . . . . . . Recall Reinforcements 1 | . 1 . . . . . . . . . . . . . . . . . . . . . . . Fabricator Hacks 2 | . . . . . . . . . . . . . 2 . . . . . . . . . . . Network Status 1 | . . . . . . . . . . . . . 1 . . . . . . . . . . . Build 1 | . . . . . . . . . . . . . 1 . . . . . . . . . . . Repair Station Hacks 2 | . . . . . . . . 2 . . . . . . . . . . . . . . . . Scan Component 1 | . . . . . . . . 1 . . . . . . . . . . . . . . . . Repair 1 | . . . . . . . . 1 . . . . . . . . . . . . . . . . Recycling Unit Hacks . | . . . . . . . . . . . . . . . . . . . . . . . . . Scanalyzer . | . . . . . . . . . . . . . . . . . . . . . . . . . Garrison Access Hacks 3 | . . . . . . . 1 1 . . . . . . . . . . . . . . 1 . Unlock Access 1 | . . . . . . . . . . . . . . . . . . . . . . . 1 . Seal Access 2 | . . . . . . . 1 1 . . . . . . . . . . . . . . . . Unauthorized Hacks 31 | . 6 . 5 . . . 5 . . . . . 6 3 . . 4 2 . . . . . . Terminals 22 | . 5 . 4 . . . 4 . . . . . 2 3 . . 4 . . . . . . . Track 6 | . 2 . 2 . . . 1 . . . . . . . . . 1 . . . . . . . Botnet 11 | . 2 . 2 . . . 2 . . . . . 1 2 . . 2 . . . . . . . Operators 5 | . 1 . . . . . 1 . . . . . 1 1 . . 1 . . . . . . . Fabricators 4 | . . . . . . . . . . . . . 4 . . . . . . . . . . . Prioritize 1 | . . . . . . . . . . . . . 1 . . . . . . . . . . . Fabnet 2 | . . . . . . . . . . . . . 2 . . . . . . . . . . . Haulers 1 | . . . . . . . . . . . . . 1 . . . . . . . . . . . Repair Stations . | . . . . . . . . . . . . . . . . . . . . . . . . . Recycling Units 3 | . 1 . 1 . . . 1 . . . . . . . . . . . . . . . . . Tunnel 3 | . 1 . 1 . . . 1 . . . . . . . . . . . . . . . . . Scanalyzers . | . . . . . . . . . . . . . . . . . . . . . . . . . Garrison Access 2 | . . . . . . . . . . . . . . . . . . 2 . . . . . . Decoy 1 | . . . . . . . . . . . . . . . . . . 1 . . . . . . Watchers 1 | . . . . . . . . . . . . . . . . . . 1 . . . . . . Data Cores Recovered . | . . . . . . . . . . . . . . . . . . . . . . . . . Used . | . . . . . . . . . . . . . . . . . . . . . . . . . Hacking Detections 34 | . 5 . 8 . . . 3 3 . . . . 2 6 . . 5 2 . . . . . . Full Trace Events 3 | . . . . . . . . 1 . . . . . 1 . . 1 . . . . . . . Feedback Events . | . . . . . . . . . . . . . . . . . . . . . . . . . Feedback Blocked . | . . . . . . . . . . . . . . . . . . . . . . . . . Robot Schematics Acquired 4 | . . . . . . . . . . . 4 . . . . . . . . . . . . . Robots Built . | . . . . . . . . . . . . . . . . . . . . . . . . . Authchips . | . . . . . . . . . . . . . . . . . . . . . . . . . Time . | . . . . . . . . . . . . . . . . . . . . . . . . . Total Robot Build Rating . | . . . . . . . . . . . . . . . . . . . . . . . . . Part Schematics Acquired 13 | . 1 . . . . . . . . . 11 . 1 . . . . . . . . . . . Parts Built 1 | . . . . . . . . . . . . . 1 . . . . . . . . . . . Authchips . | . . . . . . . . . . . . . . . . . . . . . . . . . Time 117 | . . . . . . . . . . . . . 117 . . . . . . . . . . . Total Part Build Rating 7 | . . . . . . . . . . . . . 7 . . . . . . . . . . . Parts Repaired 1 | . . . . . . . . 1 . . . . . . . . . . . . . . . . Time 108 | . . . . . . . . 108 . . . . . . . . . . . . . . . . Parts Recycled . | . . . . . . . . . . . . . . . . . . . . . . . . . Recycled Matter . | . . . . . . . . . . . . . . . . . . . . . . . . . Retrieved Matter . | . . . . . . . . . . . . . . . . . . . . . . . . . Retrieved Components . | . . . . . . . . . . . . . . . . . . . . . . . . . Parts Scanalyzed . | . . . . . . . . . . . . . . . . . . . . . . . . . Part Schematics Acquired . | . . . . . . . . . . . . . . . . . . . . . . . . . Parts Damaged . | . . . . . . . . . . . . . . . . . . . . . . . . . Bothacking | -11 -10 -10 -9 -9 -9 -8 -8 -7 -7 -7 -7 -6 -6 -6 -6 -6 -6 -5 -5 -5 -5 -4 -4 -4 ------------ Run | Yrd Mat Min Mat Min Exi Min Mat Fac Low Low Dat Pro Fac Ext Cet Arc Hub Fac Upp Upp War Pro Fac Gar Used RIF Installer . | . . . . . . . . . . . . . . . . . . . . . . . . . Robots Hacked 10 | . . . . . . . . . . . . . . . . . . 5 1 2 2 . . . Non-combat . | . . . . . . . . . . . . . . . . . . . . . . . . . Combat 10 | . . . . . . . . . . . . . . . . . . 5 1 2 2 . . . Robot Hacks Applied . | . . . . . . . . . . . . . . . . . . . . . . . . . Relay Couplers Released . | . . . . . . . . . . . . . . . . . . . . . . . . . Fabnet Peak Effective % 6 | . . . . . . . . . . . . . . . . . . 6 6 6 6 2 2 2 Autooverrided 10 | . . . . . . . . . . . . . . . . . . 5 1 2 2 . . . Robots Rewired 7 | . . . . . . . . . . . . . . 7 . . . . . . . . . . Allies Hacked . | . . . . . . . . . . . . . . . . . . . . . . . . . Hacks Repelled . | . . . . . . . . . . . . . . . . . . . . . . . . . Allies | -11 -10 -10 -9 -9 -9 -8 -8 -7 -7 -7 -7 -6 -6 -6 -6 -6 -6 -5 -5 -5 -5 -4 -4 -4 -------- Run | Yrd Mat Min Mat Min Exi Min Mat Fac Low Low Dat Pro Fac Ext Cet Arc Hub Fac Upp Upp War Pro Fac Gar Total Allies 26 | . . . . 3 . . . . . . . . . 13 . . . 5 1 2 2 . . . Largest Group 4 | . . . . 3 2 2 2 . . . . . . 4 1 1 . 2 1 1 1 . . . Highest-Rated Group 159 | . . . . 40 24 24 24 . . . . . . 159 159 159 . 137 12 12 47 . . . Highest-Rated Ally 159 | . . . . 16 16 16 16 . . . . . . 159 159 159 . 137 12 12 47 . . . Total Orders 5 | . . . . . . . . . . . . . . . . . 5 . . . . . . . EXPLORE 5 | . . . . . . . . . . . . . . . . . 5 . . . . . . . Ally Attacks 121 | . . . . 1 . . 8 . . . . . . 66 16 . . 15 5 5 5 . . . Total Damage 2760 | . . . . 12 . . 76 . . . . . . 1620 498 . . 357 59 52 86 . . . Kills 17 | . . . . . . . . . . . . . . 11 2 . . 3 . 1 . . . . Allies Corrupted . | . . . . . . . . . . . . . . . . . . . . . . . . . Allies Melted 2 | . . . . . . . . . . . . . . . . . . 1 . . 1 . . . Intel | -11 -10 -10 -9 -9 -9 -8 -8 -7 -7 -7 -7 -6 -6 -6 -6 -6 -6 -5 -5 -5 -5 -4 -4 -4 ------- Run | Yrd Mat Min Mat Min Exi Min Mat Fac Low Low Dat Pro Fac Ext Cet Arc Hub Fac Upp Upp War Pro Fac Gar Robot Analysis Total 8 | . 5 . 1 . . . 1 . . . . . . 1 . . . . . . . . . . Derelict Logs Recovered 8 | . . . . 2 . . . . 1 1 . 1 . . . . . . 2 1 . . . . Drone Launches 6 | . . . . . . . . . . . . . . . . . 6 . . . . . . . Drone Recoveries 2 | . . . . . . . . . . . . . . . . . 2 . . . . . . . Exploration | -11 -10 -10 -9 -9 -9 -8 -8 -7 -7 -7 -7 -6 -6 -6 -6 -6 -6 -5 -5 -5 -5 -4 -4 -4 ------------- Run | Yrd Mat Min Mat Min Exi Min Mat Fac Low Low Dat Pro Fac Ext Cet Arc Hub Fac Upp Upp War Pro Fac Gar Turns Passed 13347 | 58 228 314 591 378 162 56 484 1098 499 418 118 818 451 1240 320 523 508 1566 562 309 1321 971 293 61 Spaces Moved 7989 | 44 246 279 385 329 158 39 291 627 317 265 75 506 284 695 164 208 263 624 367 210 786 513 193 121 Core 166 | 8 . . . . . . . . . . . . . . . . . . . . . . 37 121 Treads 1790 | . . . . . . . . . . . . . . . 67 196 118 573 11 . 284 513 28 . Legs . | . . . . . . . . . . . . . . . . . . . . . . . . . Wheels 6033 | 36 246 279 385 329 158 39 291 627 317 265 75 506 284 695 97 12 145 51 356 210 502 . 128 . Hover . | . . . . . . . . . . . . . . . . . . . . . . . . . Flight . | . . . . . . . . . . . . . . . . . . . . . . . . . Fastest Speed 50 | 50 80 80 100 100 100 100 100 105 115 155 155 155 110 120 130 130 130 140 135 135 125 160 50 50 Average Speed 130 | 74 80 90 110 100 100 111 111 114 134 155 155 155 130 123 142 158 143 158 138 135 145 160 130 50 Slowest Speed 240 | 80 95 110 115 100 100 115 115 150 170 155 155 155 170 130 160 160 160 240 240 135 160 160 175 50 Overloaded Moves . | . . . . . . . . . . . . . . . . . . . . . . . . . Propulsion Burnouts . | . . . . . . . . . . . . . . . . . . . . . . . . . Robots Hopped . | . . . . . . . . . . . . . . . . . . . . . . . . . Cave-ins Triggered . | . . . . . . . . . . . . . . . . . . . . . . . . . Exploration Rate (%) 49 | 3 50 64 56 85 53 11 30 26 52 44 71 73 9 74 78 93 47 25 61 44 90 71 8 31 Regions Visited 24 Branch Regions 16 Pre-discovered Areas 6 | . 1 . 1 1 . . 1 . . 1 1 . . . . . . . . . . . . . Known Exits Taken 15 | . . . 1 . . . . 1 1 1 1 1 1 1 1 1 1 1 1 1 . . 1 . Unknown Exits Taken 9 | 1 1 1 . 1 1 1 1 . . . . . . . . . . . . . 1 1 . . Scrap Searched 13 | . . 1 . 1 . 1 . . 2 4 . 1 . . . . . . 3 . . . . . Spaces Dug 92 | . . 1 3 4 . . 1 30 . . . 1 10 . 1 . 2 30 3 2 . 1 3 . Terrain Destroyed 692 | . 3 1 3 12 . . 65 33 11 . . 1 10 . 39 . 183 186 24 5 49 64 3 . Melee 71 | . . . 3 4 . . 1 30 . . . 1 10 . . . 2 14 3 . . . 3 . Projectile 40 | . . 1 . . . . . . . . . . . . 1 . 1 5 1 5 6 20 . . AOE 581 | . 3 . . 8 . . 64 3 11 . . . . . 38 . 180 167 20 . 43 44 . . Terrain Rammed . | . . . . . . . . . . . . . . . . . . . . . . . . . Walls Destroyed . | . . . . . . . . . . . . . . . . . . . . . . . . . Machines Disabled . | . . . . . . . . . . . . . . . . . . . . . . . . . Actions | -11 -10 -10 -9 -9 -9 -8 -8 -7 -7 -7 -7 -6 -6 -6 -6 -6 -6 -5 -5 -5 -5 -4 -4 -4 --------- Run | Yrd Mat Min Mat Min Exi Min Mat Fac Low Low Dat Pro Fac Ext Cet Arc Hub Fac Upp Upp War Pro Fac Gar Total 9793 | 61 264 313 480 357 162 47 387 833 355 271 76 524 335 952 230 346 342 961 401 227 923 602 223 121 Wait 365 | 1 2 1 6 5 4 . 2 15 1 . . 3 3 50 11 92 21 81 1 7 40 17 2 . Move 7965 | 43 245 278 384 328 157 38 290 626 316 264 74 505 283 694 163 207 262 623 366 209 785 512 192 121 Hop . | . . . . . . . . . . . . . . . . . . . . . . . . . Pick Up 141 | 5 3 8 11 . 1 2 15 16 3 2 . 2 8 9 5 2 4 21 4 1 12 4 3 . Fast Attach 66 | 6 1 1 4 . . . 3 7 1 . . . 2 4 5 6 . 12 2 . 9 . 3 . Attach 91 | . 1 1 3 1 . . 5 12 2 . . . 4 1 4 1 7 19 2 . 10 10 8 . Detach 56 | . 1 1 4 . . . 1 6 1 . . . 2 2 3 2 2 9 3 . 9 6 4 . Swap 350 | . 5 8 17 13 . 4 27 46 17 2 2 4 11 42 11 5 26 60 12 4 16 17 1 . Drop 123 | . 1 4 14 1 . 1 13 15 1 2 . 2 6 16 11 4 1 9 2 1 17 . 2 . Fire 407 | 6 5 11 34 4 . . 30 44 11 . . 3 . 52 17 7 13 98 6 5 24 36 1 . Melee 137 | . . . 3 5 . 2 1 46 2 1 . 5 16 . . 20 5 21 3 . . . 7 . Ram . | . . . . . . . . . . . . . . . . . . . . . . . . . Kick . | . . . . . . . . . . . . . . . . . . . . . . . . . Crush 8 | . . . . . . . . . . . . . . . . . . 8 . . . . . . Escape Stasis 8 | . . . . . . . . . . . . . . 8 . . . . . . . . . . Rewire 74 | . . . . . . . . . . . . . . 74 . . . . . . . . . . Trap 1 | . . . . . . . . . . . . . . . . . . . . . 1 . . . Miscellaneous 1 | . . . . . . . . . . . . . . . . . 1 . . . . . . . Route ------- -11/Scrapyard -10/Materials -10/Mines -9/Materials (discovered 3 exits: *Mat / *Min / *Sto) -9/Mines (discovered 2 exits: *Mat / [*Exi]) -9/Exiles (discovered 2 exits: [*Min x2]) -8/Mines -8/Materials -7/Factory (discovered 3 exits: Fac / *Low x2) -7/Lower Caves -7/Lower Caves (discovered 2 exits: *Fac / *Dat) -7/Data Miner -6/Proximity Caves -6/Factory (discovered 2 exits: Low / *Ext) -6/Extension (discovered 2 exits: *Fac / *Cet) -6/Cetus (discovered 2 exits: *Fac / *Arc) -6/Archives (discovered 3 exits: *Fac / *Hub x2) -6/Hub_04(d) (discovered 2 exits: *Fac x2) -5/Factory (discovered 3 exits: *Fac x2 / *Upp) -5/Upper Caves -5/Upper Caves -5/Warlord -4/Proximity Caves -4/Factory (discovered 3 exits: Res / Upp / Gar) -4/Garrison History --------- Turn | Location | Event 22 | -11/Scrapyard | Discovered new exit (range 14) 59 | -11/Scrapyard | Entered Materials 112 | -10/Materials | Discovered new exit (range 13) 287 | -10/Materials | Entered Mines 350 | -10/Mines | Build established: Mutant 359 | -10/Mines | Found a damaged Exp. Sensor Array with a note attached 361 | -10/Mines | Found Prototype Device 361 | -10/Mines | Identified Exp. Sensor Array 420 | -10/Mines | Met a Derelict shopkeep closing up shop 576 | -10/Mines | Discovered new exit (range 7) 587 | -10/Mines | Found a hidden stash of uninstalled traps 601 | -10/Mines | Entered Materials 601 | -9/Materials | Evolved 2 slots: Propulsion x1, Utility x1 603 | -9/Materials | Discovered new exit (range 8) 964 | -9/Materials | Identified exit to Mines 964 | -9/Materials | Identified exit to Storage 1081 | -9/Materials | Discovered new exit (range 15) 1170 | -9/Materials | Central database locked down 1192 | -9/Materials | Entered Mines 1251 | -9/Mines | Assembled infested the area 1285 | -9/Mines | Discovered new exit (range 7) 1490 | -9/Mines | Assisted by bots powering up and referring to "LRC-V3" 1505 | -9/Mines | Learned location of Zion (-6) 1561 | -9/Mines | Deemed a non-threat by the Exiles lab entrance 1561 | -9/Mines | Discovered new exit (range 5) 1570 | -9/Mines | Entered Exiles 1570 | -9/Exiles | Accompanied by 2 allies 1585 | -9/Exiles | Discovered new exit (range 15) 1597 | -9/Exiles | Met 8R-AWN 1611 | -9/Exiles | Met EX-HEX 1662 | -9/Exiles | Met EX-DEC 1720 | -9/Exiles | Discovered new exit (range 10) 1732 | -9/Exiles | Entered Mines 1732 | -8/Mines | Accompanied by 2 allies 1737 | -8/Mines | Discovered new exit (range 15) 1788 | -8/Mines | Entered Materials 1788 | -8/Materials | Accompanied by 2 allies 1788 | -8/Materials | Evolved 2 slots: Utility x2 1816 | -8/Materials | Central database locked down 2111 | -8/Materials | Build established: Derelict-Mutant 2151 | -8/Materials | Discovered new exit (range 10) 2272 | -8/Materials | Entered Factory 2272 | -7/Factory | Evolved 2 slots: Utility x2 2586 | -7/Factory | Identified exit to Lower Caves 2750 | -7/Factory | Build established: Assassin 2820 | -7/Factory | Repaired Exp. Sensor Array 2982 | -7/Factory | Discovered new exit (range 16) 3370 | -7/Factory | Entered Lower Caves 3456 | -7/Lower Caves | Learned 12 Factory zone layouts 3576 | -7/Lower Caves | Attracted the attention of an 0b10 checkpoint 3841 | -7/Lower Caves | Discovered new exit (range 17) 3865 | -7/Lower Caves | Identified exit to Lower Caves 3869 | -7/Lower Caves | Entered another Lower Caves area 4020 | -7/Lower Caves | Discovered new exit (range 7) 4026 | -7/Lower Caves | Identified exit to Factory 4161 | -7/Lower Caves | Build established: Skirmisher 4261 | -7/Lower Caves | Discovered new exit (range 11) 4275 | -7/Lower Caves | Identified exit to Data Miner 4278 | -7/Lower Caves | Spotted B-75 Beast 4287 | -7/Lower Caves | Entered Data Miner 4287 | -7/Data Miner | Discovered new exit (range 7) 4314 | -7/Data Miner | Met Data Miner 4346 | -7/Data Miner | Learned location of Section 7 (-2) 4346 | -7/Data Miner | Acquired the access code to Warlord's prototype stash 4367 | -7/Data Miner | Received God Mode back door access code from Data Miner 4401 | -7/Data Miner | Identified exit to Proximity Caves 4405 | -7/Data Miner | Entered Proximity Caves 5217 | -6/Proximity Caves | Discovered exit to Factory (range 4) 5223 | -6/Proximity Caves | Entered Factory 5223 | -6/Factory | Evolved 2 slots: Propulsion x1, Weapon x1 5224 | -6/Factory | Identified exit to Lower Caves 5225 | -6/Factory | Identified exit to Extension 5323 | -6/Factory | Fabricated Imp. Armor Integrity Analyzer? 5645 | -6/Factory | Build established: Assassin 5674 | -6/Factory | Entered Extension 5837 | -6/Extension | Rescued a captive Derelict 5838 | -6/Extension | Rescued a captive Derelict 5906 | -6/Extension | Rescued a captive Derelict 5908 | -6/Extension | Rescued a captive Derelict 5932 | -6/Extension | Central database locked down 6003 | -6/Extension | Lost 3 allies 6020 | -6/Extension | Rescued a captive Derelict 6121 | -6/Extension | Spotted B-75 Beast 6169 | -6/Extension | Lost 3 allies 6608 | -6/Extension | Spotted B-75 Beast 6612 | -6/Extension | Destroyed B-75 Beast 6633 | -6/Extension | Destroyed B-75 Beast 6706 | -6/Extension | Rescued A7 6857 | -6/Extension | Discovered new exit (range 21) 6857 | -6/Extension | Discovered new exit (range 21) 6906 | -6/Extension | Build established: Derelict-Skirmisher 6910 | -6/Extension | Identified exit to Cetus 6914 | -6/Extension | Entered Cetus 6914 | -6/Cetus | Accompanied by 1 ally (A7) 6919 | -6/Cetus | Acquired a Cetus Manufacturing Module code from A7 6930 | -6/Cetus | Spotted Cetus Guard 6930 | -6/Cetus | Spotted Cetus Guard 6932 | -6/Cetus | Spotted Cetus Guard 6932 | -6/Cetus | Spotted Cetus Guard 6941 | -6/Cetus | Allies destroyed Cetus Guard 6944 | -6/Cetus | Destroyed Cetus Guard 6944 | -6/Cetus | Destroyed Cetus Guard 6946 | -6/Cetus | Destroyed Cetus Guard 6969 | -6/Cetus | System corruption reached 10% 7045 | -6/Cetus | Cetus Manufacturing Module disabled 7109 | -6/Cetus | Escorted A7 to Cetus Mainframe 7121 | -6/Cetus | Discovered new exit (range 22) 7149 | -6/Cetus | Spotted Cetus Guard 7151 | -6/Cetus | Spotted Cetus Guard 7153 | -6/Cetus | Spotted Cetus Guard 7156 | -6/Cetus | Spotted Cetus Guard 7159 | -6/Cetus | Destroyed Cetus Guard 7161 | -6/Cetus | Destroyed Cetus Guard 7162 | -6/Cetus | Destroyed Cetus Guard 7164 | -6/Cetus | Destroyed Cetus Guard 7170 | -6/Cetus | Discovered new exit (range 21) 7186 | -6/Cetus | Met Revision 17 7233 | -6/Cetus | Identified exit to Archives 7234 | -6/Cetus | Entered Archives 7234 | -6/Archives | Accompanied by 1 ally (A7) 7239 | -6/Archives | Received a hacking code to weaken MAIN.C 7295 | -6/Archives | Discovered new exit (range 22) 7350 | -6/Archives | Discovered new exit (range 13) 7383 | -6/Archives | Discovered new exit (range 14) 7408 | -6/Archives | Identified exit to Hub_04(d) 7757 | -6/Archives | Entered Hub_04(d) 7938 | -6/Hub_04(d) | Lost 3 parts (2u1w) 7991 | -6/Hub_04(d) | Discovered new exit (range 5) 8022 | -6/Hub_04(d) | Identified exit to Factory 8109 | -6/Hub_04(d) | Discovered exit to Factory (range 8) 8161 | -6/Hub_04(d) | Network Hub disabled 8253 | -6/Hub_04(d) | Network Hub disabled 8253 | -6/Hub_04(d) | Spotted Lightning 8253 | -6/Hub_04(d) | Spotted Lightning 8253 | -6/Hub_04(d) | Spotted Lightning 8259 | -6/Hub_04(d) | System corruption reached 30% 8265 | -6/Hub_04(d) | Entered Factory 8265 | -5/Factory | Evolved 2 slots: Utility x1, Weapon x1 8421 | -5/Factory | Garrison activated, responded to threat 8485 | -5/Factory | Destroyed 15 combat bots 8490 | -5/Factory | Lost 3 parts (1u2w) 8690 | -5/Factory | Discovered new exit (range 14) 9136 | -5/Factory | Lost 3 parts (3w) 9165 | -5/Factory | First assault squad dispatched 9184 | -5/Factory | Lost 3 parts (1p2u) 9255 | -5/Factory | Discovered new exit (range 17) 9347 | -5/Factory | Destroyed 9 combat bots 9581 | -5/Factory | Discovered new exit (range 4) 9663 | -5/Factory | Build established: Scavenger-Gunner 9783 | -5/Factory | Identified exit to Upper Caves 9831 | -5/Factory | Entered Upper Caves 9876 | -5/Upper Caves | Destroyed 10 combat bots 9925 | -5/Upper Caves | Learned 4 Factory zone layouts 9992 | -5/Upper Caves | Build established: Scavenger-Assassin 10159 | -5/Upper Caves | Encountered a Warlord checkpoint 10313 | -5/Upper Caves | Discovered new exit (range 15) 10332 | -5/Upper Caves | Identified exit to Upper Caves 10376 | -5/Upper Caves | Build established: Scavenger-Skirmisher 10393 | -5/Upper Caves | Entered another Upper Caves area 10602 | -5/Upper Caves | Learned Factory terminal intel 10659 | -5/Upper Caves | Found Alien Artifact 10684 | -5/Upper Caves | Discovered new exit (range 14) 10700 | -5/Upper Caves | Identified exit to Warlord 10702 | -5/Upper Caves | Entered Warlord 10747 | -5/Warlord | System corruption cleaned by Quarantine Array 11117 | -5/Warlord | Found Prototype Special Weapon 11117 | -5/Warlord | Identified RU-N14's Throwing Claymores v3 11120 | -5/Warlord | Found RU-N14's Throwing Claymores v3 11123 | -5/Warlord | Found RU-N14's Throwing Claymores v3 11126 | -5/Warlord | Found RU-N14's Throwing Claymores v3 11427 | -5/Warlord | Visited the Vortex Lab 11439 | -5/Warlord | Found Prototype Energy Cannon 11440 | -5/Warlord | Warlord's base attacked by MAIN.C 11442 | -5/Warlord | Found Prototype Energy Cannon 11442 | -5/Warlord | Identified Vortex Driver (x2) 11607 | -5/Warlord | Met Warlord 11619 | -5/Warlord | Lost 3 allies 11621 | -5/Warlord | Opened Warlord's prototype stash 11626 | -5/Warlord | Found Prototype Reactor 11633 | -5/Warlord | Found Prototype Device 11633 | -5/Warlord | Identified Exp. Cloaking Device 11648 | -5/Warlord | Found Prototype Device 11648 | -5/Warlord | Identified Thermal Barrier 11656 | -5/Warlord | Found Prototype Hackware 11762 | -5/Warlord | Spotted B-75 Beast 11772 | -5/Warlord | Spotted B-86 Titan 11772 | -5/Warlord | Destroyed B-75 Beast 11781 | -5/Warlord | Spotted Executioner 11787 | -5/Warlord | Destroyed Executioner 11790 | -5/Warlord | Warlord forces counterattacked 11812 | -5/Warlord | Destroyed 7 combat bots 11845 | -5/Warlord | Lost 4 allies 11930 | -5/Warlord | Lost 6 allies 11947 | -5/Warlord | Spotted Striker 11947 | -5/Warlord | Spotted Striker 11971 | -5/Warlord | Destroyed Striker 11992 | -5/Warlord | Destroyed 12 combat bots 11995 | -5/Warlord | Lost 8 allies 12011 | -5/Warlord | Discovered new exit (range 8) 12023 | -5/Warlord | Entered Proximity Caves 12172 | -4/Proximity Caves | Attracted the attention of an 0b10 outpost 12226 | -4/Proximity Caves | Destroyed 9 combat bots 12885 | -4/Proximity Caves | Spotted B-86 Titan 12936 | -4/Proximity Caves | Discovered new exit (range 17) 12952 | -4/Proximity Caves | Core integrity fell below 50% 12994 | -4/Proximity Caves | Lost 3 parts (1p1n1w) 12994 | -4/Proximity Caves | Entered Factory 12994 | -4/Factory | Evolved 2 slots: Power x1, Propulsion x1 12994 | -4/Factory | Identified Vortex Chain Reactor 12995 | -4/Factory | Identified exit to Upper Caves 12996 | -4/Factory | Identified exit to Research 12997 | -4/Factory | Loaded intel: 25 terminal locations 13012 | -4/Factory | Spotted B-86 Titan 13066 | -4/Factory | Identified Ghost Barrier 13287 | -4/Factory | Core integrity fell below 50% 13287 | -4/Factory | Identified exit to Garrison 13287 | -4/Factory | Entered Garrison 13302 | -4/Garrison | Lost 14 parts (1p5n5u3w) 13318 | -4/Garrison | Spotted B-86 Titan 13333 | -4/Garrison | Core integrity fell below 20% 13338 | -4/Garrison | Triggered checkpoint 13348 | -4/Garrison | Triggered checkpoint 13348 | -4/Garrison | Destroyed by H-77 Assassin with High-powered Shotgun Last Messages --------------- 13271_ Penetrated by Slug. 13274_ Triggered Ambush Trap. 13274_ S-27 Virus emerges from a hatch in the floor. 13274_ G-67 Veteran emerges from a hatch in the floor. 13287_ Connecting with Garrison Access... >>Unlock Access door unlocked. 13287_ EXIT=UNLOCKED: GARRISON LOCATION=GARRISON GOAL=ESCAPE 13297_ Triggered Fusion Bomb Trap. 13297_ An explosion rips through the floor. 13321_ Adv. Targeting Computer severed. 13325_ Knocked back. 13325_ C-35 Carver destroyed. 13332_ Terrain Scan Processor severed. 13338_ Beams of light sweep through the air. An alarm sounds. 13348_ C-30 ARC bursts open, deploying its payload. 13348_ H-77 Assassin unfolds itself. 13348_ Penetrated by Slug. Map ----- +----------------------------------------------------+ | ????????????######T#### ## ## #???????????? | | ????????????# #???????????? | | ????????????# #???????????? | | ????????????# #??????# !* #???????????? | | ????????????# #??????##/%"#""""#" ##???????????? | | ????????????# #??????## = ??????# #????????????? | | ????????????# #??????# #??????# #????????????? | | ????????????# #?????## ##?????# #????????????? | | ????????????# #?????? #?????# #????????????? | | ????????????# #??????## #?????# #????????????? | | ############ ####+###" #??????# #????????????? | | #??????# ########?????? | | #??????# #?????? | | ?### ### ### ########### #??????# ####### | | ????????#???# #?????????? #??????######## | | ????????????#^#?????????? #?????????????# ##### # | | ????????????# #?????????? #?????????????# #?## # | | ????????????# #?????????# #?????????????# #?# # | | ????????????# #?????????# #?????????????# #?# | | ????????????# #?????????# #?????????????# ### | | ????????????# #?????????# #?????????????# # | | ????????????# #?????????# #?????????????# # | | ????????????# ###?????### #?????????????# ## | | ????????????# #?????#%h #?????????????####### | | ????????????# #?????#Ch #???????????????????#### | | ????????????# #?????#C @#??????????????????????? | | ????????????# ###?????### #??????????????????????? | | ????????????# #?????????#c#??????????????????????? | | ????????????# ###########s#??????????????????????? | | ????????????# #??????????????????????? | | ????????????# #### #### #??????????????????????? | | ????????????# #?#"""""#?# #??????????????????????? | | ????????????# #?#######?# #??????????????????????? | | ????????????# #?????????# #??????????????????????? | | ????????????# #?????????# #??????????????????????? | | ????????????# #????????? ??????????????????????? | | ????????????" "????????? ??????????????????????? | | ?????????????T?????????? #??????????????????????? | | ?????????????#?????????? ???????????????????????? | | ????????????????????????##???????????????????????? | | ?????????????????????????????????????????????????? | | ?????????????????????????????????????????????????? | | ?????????????????????????????????????????????????? | | ?????????????????????????????????????????????????? | | ?????????????????????????????????????????????????? | | ?????????????????????????????????????????????????? | | ?????????????????????????????????????????????????? | | | | | | | +----------------------------------------------------+ Best States ------------- Heat Dissipation 90 Coolant Potential 120 Energy Generation 55 Energy Capacity 700 Matter Stores 300 Matter Capacity 300 Sight Range 22 Robot Scan Range 20 Terrain Scan Range 16 Terrain Scan Density 210 ECM Strength 1 Jamming Range 12 Cloak Strength 4 Armor Coverage 900 Resistance: KI 20 Resistance: TH 50 Resistance: EM 25 Evasion (%) 50 Targeting Accuracy 24 Target Analysis 6 Recoil Reduction 4 Offensive Hacking 24 Defensive Hacking 20 Item Schematics ----------------- Sensor Array | -10/Materials | Hacked Combat Drone Bay | -7/Data Miner | Free Lgt. Regenerative Plating | -7/Data Miner | Free Cld. Aerolev Unit | -7/Data Miner | Free Gravity Neutralizer | -7/Data Miner | Free Scatter Rocket Array | -7/Data Miner | Free Field Propulsion Drive | -7/Data Miner | Free Imp. Shock Absorption System | -7/Data Miner | Free KE Penetrator | -7/Data Miner | Free Flexi-carbon Leg | -7/Data Miner | Free Imp. Transmission Jammer | -7/Data Miner | Free Railgun | -7/Data Miner | Free Adv. Signal Interpreter | -6/Factory | Hacked Robot Schematics ------------------ G-50 Soldier | -7/Data Miner | Free M-14 Sweeper | -7/Data Miner | Free R-10 Processor | -7/Data Miner | Free Y-64 Sentinel | -7/Data Miner | Free Fabricated ------------ Imp. Armor Integrity Analyzer | x1 | -6/Factory | Preloaded Alien Tech Used ----------------- None Achievements -------------- None Challenges ------------ None Game ------ Seed SapperSystemLog Manual? 0 Play Time 02:59:01 Cumulative 1034.8 hours Start 2024.02.17 @ 15:31:12 End 2024.02.18 @ 01:40:16 Sessions 11 Manual Loads 0 Difficulty Rogue Special Mode None Game No. 520 Rogue 393 Adventurer 125 Explorer 2 Win Type - Total 123 Types 97/9/8/3/3/0/0/2/1 Lore% 82 Gallery% 89 Achievement% 84 Wizard Run 0 Options --------- Layout 0 ASCII 0 Keyboard 1 Movement Numpad Keybinds 0 Fullscreen 1 Font 36/Terminus++ Map View 76x50 Zoom Use 0% Tactical HUD 1 Map Filters NONE Filters NONE Steam 1 RUN: 130d72db-b59e-4fbc-a280-284213589d37